fUST/lending_fUST_20250726
["ID","MTS","AMOUNT","RATE_DAILY","PERIOD"]
[375099049,1753527040315,-8471.01,0.00019726,2]
[375099050,1753527040325,-460.0,0.00019726,2]
[375099051,1753527040334,-460.0,0.00019726,2]
[375099052,1753527040346,-460.0,0.00019726,2]
[375099053,1753527040355,-460.0,0.00019726,2]
[375099054,1753527040364,-814.3,0.00019726,2]
[375099055,1753527040373,-843.6,0.00019726,2]
[375099056,1753527040384,-460.0,0.00019726,2]
[375099057,1753527040395,-676.24,0.00019726,2]
[375099058,1753527040404,-1443.02,0.00019726,2]
[375099059,1753527040415,-1286.08,0.00019726,2]
[375099060,1753527040425,-904.24,0.00019726,2]
[375099061,1753527040435,-726.98,0.00019726,2]
[375099062,1753527040445,-523.82,0.00019726,2]
[375099063,1753527040454,-338.81161482,0.000199,2]
[375099064,1753527040465,-460.0,0.0002,2]
[375099065,1753527040474,-460.0,0.0002,2]
[375099066,1753527040484,-460.0,0.0002,2]
[375099067,1753527040494,-467.23,0.0002,2]
[375099068,1753527040504,-531.37,0.0002,2]
[375099070,1753527040513,-460.0,0.0002,2]
[375099072,1753527040522,-460.0,0.0002,2]
[375099074,1753527040531,-460.0,0.0002,2]
[375099075,1753527040541,-460.0,0.0002,2]
[375099076,1753527040550,-584.06680626,0.0002,2]
[375099077,1753527040559,-797.93,0.0002,2]
[375099078,1753527040570,-684.19,0.0002,2]
[375099079,1753527040579,-273.41685678,0.0002,2]
[375099080,1753527040588,-399.04812517,0.0002,2]
[375099081,1753527040598,-460.0,0.0002,2]
[375099082,1753527040607,-392.65882609,0.0002,2]
[375099083,1753527040617,-460.0,0.0002,2]
[375099084,1753527040626,-579.61,0.0002,2]
[375099085,1753527040636,-13800.58259017,0.0002,2]
[375099086,1753527040645,-460.0,0.0002,2]
[375099087,1753527040655,-686.84,0.0002,2]
[375099088,1753527040665,-460.0,0.0002,2]
[375099089,1753527040674,-460.0,0.0002,2]
[375099090,1753527040683,-460.0,0.0002,2]
[375099091,1753527040693,-471.79738491,0.0002,2]
[375099092,1753527040703,-2511.02,0.0002,2]
[375099093,1753527040713,-460.0,0.0002,2]
[375099094,1753527040722,-460.0,0.0002,2]
[375099095,1753527040731,-460.0,0.0002,2]
[375099096,1753527040740,-600.72,0.0002,2]
[375099097,1753527040826,-460.0,0.0002,2]
[375099098,1753527040836,-460.0,0.0002,2]
[375099099,1753527040845,-460.0,0.0002,2]
[375099100,1753527040854,-460.0,0.0002,2]
[375099101,1753527040864,-460.0,0.0002,2]
[375099102,1753527040873,-460.0,0.0002,2]
[375099103,1753527040883,-2794.0,0.0002,2]
[375099104,1753527040892,-460.0,0.0002,2]
[375099105,1753527040902,-460.0,0.0002,2]
[375099106,1753527040912,-4094.52,0.0002,2]
[375099107,1753527040921,-2323.02,0.0002,2]
[375099108,1753527040930,-460.0,0.0002,2]
[375099109,1753527040940,-669.94,0.0002,2]
[375099110,1753527040950,-807.89,0.0002,2]
[375099111,1753527040960,-460.0,0.0002,2]
[375099112,1753527040970,-3242.85,0.0002,2]
[375099113,1753527040980,-525.06571632,0.0002,2]
[375099114,1753527040990,-507.95,0.0002,2]
[375099115,1753527040999,-827.3,0.0002,2]
[375099116,1753527041009,-5874.56,0.0002,2]
[375099117,1753527041018,-460.0,0.0002,2]
[375099118,1753527041028,-460.0,0.0002,2]
[375099119,1753527041037,-588.82,0.0002,2]
[375099120,1753527041046,-334.55982267,0.0002,2]
[375099121,1753527041056,-596.14,0.0002,2]
[375099122,1753527041066,-724.98,0.0002,2]
[375099123,1753527041076,-787.86,0.0002,2]
[375099124,1753527041085,-1402.46,0.0002,2]
[375099125,1753527041095,-3413.29,0.0002,2]
[375099126,1753527041104,-1667.4,0.0002,2]
[375099127,1753527041113,-460.0,0.0002,2]
[375099128,1753527041123,-460.0,0.0002,2]
[375099129,1753527041132,-2017.53,0.0002,2]
[375099130,1753527041141,-460.0,0.0002,2]
[375099131,1753527041151,-727.62,0.0002,2]
[375099132,1753527041160,-471.24,0.0002,2]
[375099133,1753527041169,-2856.97,0.0002,2]
[375099134,1753527041179,-343.57067702,0.0002,2]
[375099135,1753527041188,-2520.78,0.0002,2]
[375099136,1753527041197,-1925.48,0.0002,2]
[375099137,1753527041206,-470.9,0.0002,2]
[375099138,1753527041216,-460.0,0.0002,2]
[375099139,1753527041226,-460.0,0.0002,2]
[375099140,1753527041235,-1046.86,0.0002,2]
[375099141,1753527041244,-460.0,0.0002,2]
[375099142,1753527041253,-460.0,0.0002,2]
[375099143,1753527041263,-570.67,0.0002,2]
[375099144,1753527041271,-460.0,0.0002,2]
[375099145,1753527041281,-859.5,0.0002,2]
[375099146,1753527041290,-2649.8,0.0002,2]
[375099147,1753527041300,-540.45,0.0002,2]
[375099148,1753527041309,-772.34,0.0002,2]
[375099149,1753527041318,-1753.33,0.0002,2]
[375099150,1753527041328,-460.0,0.0002,2]
[375099151,1753527041340,-8471.01,0.0002,2]
[375099152,1753527041349,-460.0,0.0002,2]
[375099153,1753527041358,-460.0,0.0002,2]
[375099154,1753527041367,-460.0,0.0002,2]
[375099155,1753527041377,-586.25966837,0.0002,2]
[375099156,1753527041386,-814.3,0.0002,2]
[375099157,1753527041396,-160.0,0.0002,3]
[375099158,1753527041405,-843.6,0.0002,2]
[375099159,1753527041415,-460.0,0.0002,2]
[375099160,1753527041424,-676.24,0.0002,2]
[375099161,1753527041434,-1443.02,0.0002,2]
[375099162,1753527041443,-1286.08,0.0002,2]
[375099163,1753527041452,-904.24,0.0002,2]
[375099164,1753527041462,-726.98,0.0002,2]
[375099165,1753527041472,-523.82,0.0002,2]
[375099166,1753527041481,-287.23,0.00020065,2]
[375099167,1753527041492,-168.0,0.00020085,2]
[375099168,1753527041501,-166.257108,0.00020187,2]
[375099169,1753527041511,-168.0,0.00020212,2]
[375099170,1753527041520,-649.826,0.00020254,2]
[375099171,1753527041529,-2157.0,0.00020254,2]
[375099172,1753527041539,-421.487,0.00020254,2]
[375099173,1753527041548,-969.0,0.00020254,2]
[375099174,1753527041557,-1500.0,0.00020268,2]
[375099175,1753527041567,-1500.0,0.00020268,2]
[375099176,1753527041576,-298.37455666,0.00020273,2]
[375099177,1753527041585,-460.0,0.00020273,2]
[375099178,1753527041595,-460.0,0.00020273,2]
[375099179,1753527041604,-467.23,0.00020273,2]
[375099180,1753527041615,-531.37,0.00020273,2]
[375099181,1753527041625,-460.0,0.00020273,2]
[375099182,1753527041634,-460.0,0.00020273,2]
[375099183,1753527041643,-460.0,0.00020273,2]
[375099184,1753527041653,-460.0,0.00020273,2]
[375099185,1753527041662,-797.93,0.00020273,2]
[375099186,1753527041671,-684.19,0.00020273,2]
[375099187,1753527041682,-309.60253341,0.00020273,2]
[375099188,1753527041691,-460.0,0.00020273,2]
[375099189,1753527041701,-579.61,0.00020273,2]
[375099190,1753527041710,-460.0,0.00020273,2]
[375099191,1753527041719,-686.84,0.00020273,2]
[375099192,1753527041728,-460.0,0.00020273,2]
[375099193,1753527041738,-460.0,0.00020273,2]
[375099194,1753527041747,-460.0,0.00020273,2]
[375099195,1753527041757,-2511.02,0.00020273,2]
[375099196,1753527041766,-460.0,0.00020273,2]
[375099197,1753527041775,-460.0,0.00020273,2]
[375099198,1753527041785,-460.0,0.00020273,2]
[375099199,1753527041794,-151.0,0.00020273,2]
[375099200,1753527041803,-600.72,0.00020273,2]
[375099201,1753527041813,-427.7960453,0.00020273,2]
[375099202,1753527041822,-460.0,0.00020273,2]
[375099203,1753527041833,-460.0,0.00020273,2]
[375099204,1753527041842,-255.93331105,0.00020273,2]
[375099205,1753527041852,-460.0,0.00020273,2]
[375099206,1753527041861,-2794.0,0.00020273,2]
[375099207,1753527041872,-465.93139793,0.00020273,2]
[375099208,1753527041882,-4094.52,0.00020273,2]
[375099209,1753527041891,-460.0,0.00020273,2]
[375099210,1753527041900,-2323.02,0.00020273,2]
[375099211,1753527041910,-460.0,0.00020273,2]
[375099212,1753527041919,-669.94,0.00020273,2]
[375099213,1753527041928,-807.89,0.00020273,2]
[375099214,1753527041938,-460.0,0.00020273,2]
[375099215,1753527041948,-3242.85,0.00020273,2]
[375099216,1753527041957,-507.95,0.00020273,2]
[375099217,1753527041968,-827.3,0.00020273,2]
[375099218,1753527041978,-177.084194,0.00020273,2]
[375099219,1753527041988,-177.084194,0.00020273,2]
[375099220,1753527041996,-5874.56,0.00020273,2]
[375099221,1753527042005,-460.0,0.00020273,2]
[375099222,1753527042014,-460.0,0.00020273,2]
[375099223,1753527042024,-588.82,0.00020273,2]
[375099224,1753527042033,-596.14,0.00020273,2]
[375099225,1753527042042,-724.98,0.00020273,2]
[375099226,1753527042052,-787.86,0.00020273,2]
[375099227,1753527042061,-1402.46,0.00020273,2]
[375099228,1753527042071,-3413.29,0.00020273,2]
[375099229,1753527042080,-1667.4,0.00020273,2]
[375099230,1753527042090,-460.0,0.00020273,2]
[375099231,1753527042099,-608.757826,0.00020273,2]
[375099232,1753527042109,-608.757826,0.00020273,2]
[375099233,1753527042118,-460.0,0.00020273,2]
[375099234,1753527042128,-152.052852,0.00020273,2]
[375099235,1753527042137,-2017.53,0.00020273,2]
[375099236,1753527042146,-460.0,0.00020273,2]
[375099237,1753527042156,-727.62,0.00020273,2]
[375099238,1753527042165,-471.24,0.00020273,2]
[375099239,1753527042175,-2856.97,0.00020273,2]
[375099240,1753527042184,-2520.78,0.00020273,2]
[375099241,1753527042194,-1925.48,0.00020273,2]
[375099242,1753527042203,-470.9,0.00020273,2]
[375099243,1753527042213,-460.0,0.00020273,2]
[375099244,1753527042223,-460.0,0.00020273,2]
[375099245,1753527042232,-1046.86,0.00020273,2]
[375099246,1753527042242,-487.92754762,0.00020273,2]
[375099247,1753527042251,-468.96845353,0.00020273,2]
[375099248,1753527042262,-570.67,0.00020273,2]
[375099249,1753527042271,-460.0,0.00020273,2]
[375099250,1753527042281,-859.5,0.00020273,2]
[375099251,1753527042291,-2649.8,0.00020273,2]
[375099252,1753527042300,-540.45,0.00020273,2]
[375099253,1753527042310,-151.0,0.00020273,2]
[375099254,1753527042320,-772.34,0.00020273,2]
[375099255,1753527042329,-151.0,0.00020273,2]
[375099256,1753527042344,-1753.33,0.00020273,2]
[375099257,1753527042353,-204.805823,0.00020273,2]
[375099258,1753527042362,-460.0,0.00020273,2]
[375099259,1753527042372,-151.0,0.00020273,2]
[375099260,1753527042382,-8471.01,0.00020273,2]
[375099261,1753527042467,-460.0,0.00020273,2]
[375099262,1753527042477,-151.0,0.00020273,2]
[375099263,1753527042486,-460.0,0.00020273,2]
[375099264,1753527042496,-460.0,0.00020273,2]
[375099265,1753527042506,-814.3,0.00020273,2]
[375099266,1753527042516,-151.0,0.00020273,2]
[375099267,1753527042525,-843.6,0.00020273,2]
[375099268,1753527042535,-460.0,0.00020273,2]
[375099269,1753527042545,-676.24,0.00020273,2]
[375099270,1753527042554,-1443.02,0.00020273,2]
[375099271,1753527042564,-1286.08,0.00020273,2]
[375099272,1753527042574,-904.24,0.00020273,2]
[375099273,1753527042583,-726.98,0.00020273,2]
[375099274,1753527042593,-523.82,0.00020273,2]
[375099275,1753527042603,-338.81161482,0.0002031,2]
[375099276,1753527042612,-680.0,0.00020318,2]
[375099277,1753527042622,-295.6,0.00020424,3]
[375099278,1753527042632,-160.0,0.00020438,2]
[375099279,1753527042641,-5078.53249615,0.00020476,2]
[375099280,1753527042650,-680.0,0.00020525,2]
[375099281,1753527042659,-231.28369723,0.00020535,2]
[375099282,1753527042669,-460.0,0.00020547,2]
[375099283,1753527042678,-460.0,0.00020547,2]
[375099284,1753527042687,-467.23,0.00020547,2]
[375099285,1753527042697,-531.37,0.00020547,2]
[375099286,1753527042707,-460.0,0.00020547,2]
[375099287,1753527042719,-460.0,0.00020547,2]
[375099288,1753527042728,-460.0,0.00020547,2]
[375099289,1753527042738,-460.0,0.00020547,2]
[375099290,1753527042747,-797.93,0.00020547,2]
[375099291,1753527042756,-684.19,0.00020547,2]
[375099292,1753527042766,-460.0,0.00020547,2]
[375099293,1753527042775,-579.61,0.00020547,2]
[375099294,1753527042786,-460.0,0.00020547,2]
[375099295,1753527042795,-686.84,0.00020547,2]
[375099296,1753527042804,-460.0,0.00020547,2]
[375099297,1753527042814,-460.0,0.00020547,2]
[375099298,1753527042823,-460.0,0.00020547,2]
[375099299,1753527042832,-2511.02,0.00020547,2]
[375099300,1753527042841,-201.58570825,0.00020547,2]
[375099301,1753527042851,-460.0,0.00020547,2]
[375099302,1753527042860,-460.0,0.00020547,2]
[375099303,1753527042871,-600.72,0.00020547,2]
[375099304,1753527042881,-460.0,0.00020547,2]
[375099305,1753527042892,-460.0,0.00020547,2]
[375099306,1753527042903,-460.0,0.00020547,2]
[375099307,1753527042912,-2794.0,0.00020547,2]
[375099308,1753527042922,-4094.52,0.00020547,2]
[375099309,1753527042931,-460.0,0.00020547,2]
[375099310,1753527042941,-2323.02,0.00020547,2]
[375099311,1753527042951,-552.75149839,0.00020547,2]
[375099312,1753527042960,-669.94,0.00020547,2]
[375099313,1753527042971,-807.89,0.00020547,2]
[375099314,1753527042981,-460.0,0.00020547,2]
[375099315,1753527042990,-3242.85,0.00020547,2]
[375099316,1753527042999,-507.95,0.00020547,2]
[375099317,1753527043008,-827.3,0.00020547,2]
[375099318,1753527043018,-5874.56,0.00020547,2]
[375099319,1753527043027,-460.0,0.00020547,2]
[375099320,1753527043036,-460.0,0.00020547,2]
[375099321,1753527043046,-588.82,0.00020547,2]
[375099322,1753527043056,-596.14,0.00020547,2]
[375099324,1753527043065,-724.98,0.00020547,2]
[375099325,1753527043075,-787.86,0.00020547,2]
[375099326,1753527043085,-1402.46,0.00020547,2]
[375099327,1753527043095,-3413.29,0.00020547,2]
[375099328,1753527043104,-1667.4,0.00020547,2]
[375099329,1753527043114,-460.0,0.00020547,2]
[375099331,1753527043124,-460.0,0.00020547,2]
[375099333,1753527043133,-2017.53,0.00020547,2]
[375099334,1753527043142,-460.0,0.00020547,2]
[375099336,1753527043152,-727.62,0.00020547,2]
[375099338,1753527043161,-471.24,0.00020547,2]
[375099340,1753527043170,-2856.97,0.00020547,2]
[375099342,1753527043180,-2520.78,0.00020547,2]
[375099344,1753527043189,-1925.48,0.00020547,2]
[375099345,1753527043200,-470.9,0.00020547,2]
[375099347,1753527043209,-460.0,0.00020547,2]
[375099349,1753527043223,-460.0,0.00020547,2]
[375099351,1753527043233,-1046.86,0.00020547,2]
[375099353,1753527043243,-570.67,0.00020547,2]
[375099356,1753527043252,-460.0,0.00020547,2]
[375099359,1753527043261,-859.5,0.00020547,2]
[375099361,1753527043270,-2649.8,0.00020547,2]
[375099362,1753527043279,-540.45,0.00020547,2]
[375099363,1753527043289,-151.0,0.00020547,2]
[375099364,1753527043298,-772.34,0.00020547,2]
[375099366,1753527043307,-151.0,0.00020547,2]
[375099367,1753527043316,-1753.33,0.00020547,2]
[375099368,1753527043325,-460.0,0.00020547,2]
[375099369,1753527043335,-151.0,0.00020547,2]
[375099371,1753527043348,-8471.01,0.00020547,2]
[375099373,1753527043357,-460.0,0.00020547,2]
[375099375,1753527043366,-151.0,0.00020547,2]
[375099376,1753527043376,-460.0,0.00020547,2]
[375099378,1753527043385,-460.0,0.00020547,2]
[375099380,1753527043394,-814.3,0.00020547,2]
[375099382,1753527043406,-151.0,0.00020547,2]
[375099384,1753527043415,-843.6,0.00020547,2]
[375099386,1753527043424,-460.0,0.00020547,2]
[375099388,1753527043433,-676.24,0.00020547,2]
[375099390,1753527043443,-1443.02,0.00020547,2]
[375099392,1753527043453,-1286.08,0.00020547,2]
[375099394,1753527043462,-726.98,0.00020547,2]
[375099395,1753527043472,-317.257115,0.00020599,8]
[375099396,1753527043481,-520.0,0.00020679,2]
[375099398,1753527043490,-151.0,0.00020688,7]
[375099400,1753527043500,-151.0,0.00020688,7]
[375099402,1753527043509,-520.0,0.00020688,2]
[375099404,1753527043518,-338.81161482,0.00020721,2]
[375099406,1753527043527,-151.0,0.000208,3]
[375099408,1753527043536,-2413.68,0.00020806,3]
[375099410,1753527043545,-151.0,0.00020806,2]
[375099412,1753527043555,-151.0,0.00020806,2]
[375099414,1753527043565,-151.0,0.00020806,2]
[375099416,1753527043574,-1698.835608,0.00020806,2]
[375099418,1753527043584,-1698.835608,0.00020806,2]
[375099420,1753527043593,-151.0,0.00020806,2]
[375099422,1753527043603,-151.0,0.00020806,2]
[375099424,1753527043612,-2000.0,0.00020816,2]
[375099426,1753527043622,-2000.0,0.00020816,2]
[375099428,1753527043631,-158.25796529,0.00020821,2]
[375099430,1753527043641,-460.0,0.00020821,2]
[375099432,1753527043651,-460.0,0.00020821,2]
[375099434,1753527043660,-460.0,0.00020821,2]
[375099436,1753527043669,-151.0,0.00020821,2]
[375099438,1753527043678,-460.0,0.00020821,2]
[375099440,1753527043688,-467.23,0.00020821,2]
[375099441,1753527043697,-531.37,0.00020821,2]
[375099443,1753527043707,-151.0,0.00020821,2]
[375099445,1753527043717,-460.0,0.00020821,2]
[375099447,1753527043726,-460.0,0.00020821,2]
[375099449,1753527043735,-460.0,0.00020821,2]
[375099451,1753527043744,-151.0,0.00020821,2]
[375099453,1753527043754,-460.0,0.00020821,2]
[375099455,1753527043764,-797.93,0.00020821,2]
[375099457,1753527043773,-151.0,0.00020821,2]
[375099459,1753527043784,-684.19,0.00020821,2]
[375099462,1753527043794,-151.0,0.00020821,2]
[375099464,1753527043804,-151.0,0.00020821,2]
[375099466,1753527043814,-151.0,0.00020821,2]
[375099468,1753527043824,-151.0,0.00020821,2]
[375099470,1753527043834,-460.0,0.00020821,2]
[375099472,1753527043844,-151.0,0.00020821,2]
[375099473,1753527043853,-579.61,0.00020821,2]
[375099475,1753527043862,-151.0,0.00020821,2]
[375099478,1753527043873,-151.0,0.00020821,2]
[375099480,1753527043882,-266.743077,0.00020821,2]
[375099481,1753527043892,-151.0,0.00020821,2]
[375099484,1753527043901,-151.0,0.00020821,2]
[375099485,1753527043911,-460.0,0.00020821,2]
[375099493,1753527043994,-686.84,0.00020821,2]
[375099495,1753527044008,-151.0,0.00020821,2]
[375099496,1753527044017,-151.0,0.00020821,2]
[375099497,1753527044029,-460.0,0.00020821,2]
[375099498,1753527044039,-460.0,0.00020821,2]
[375099499,1753527044048,-151.0,0.00020821,2]
[375099500,1753527044058,-460.0,0.00020821,2]
[375099501,1753527044067,-2511.02,0.00020821,2]
[375099502,1753527044078,-460.0,0.00020821,2]
[375099503,1753527044088,-151.0,0.00020821,2]
[375099504,1753527044098,-460.0,0.00020821,2]
[375099505,1753527044107,-600.72,0.00020821,2]
[375099506,1753527044117,-460.0,0.00020821,2]
[375099507,1753527044127,-460.0,0.00020821,2]
[375099508,1753527044136,-460.0,0.00020821,2]
[375099509,1753527044145,-2794.0,0.00020821,2]
[375099510,1753527044154,-4094.52,0.00020821,2]
[375099511,1753527044163,-460.0,0.00020821,2]
[375099512,1753527044174,-2323.02,0.00020821,2]
[375099513,1753527044183,-669.94,0.00020821,2]
[375099514,1753527044193,-807.89,0.00020821,2]
[375099515,1753527044203,-460.0,0.00020821,2]
[375099516,1753527044212,-3242.85,0.00020821,2]
[375099517,1753527044222,-507.95,0.00020821,2]
[375099518,1753527044232,-827.3,0.00020821,2]
[375099519,1753527044241,-177.084194,0.00020821,2]
[375099520,1753527044251,-177.084194,0.00020821,2]
[375099521,1753527044260,-5874.56,0.00020821,2]
[375099522,1753527044272,-460.0,0.00020821,2]
[375099523,1753527044290,-460.0,0.00020821,2]
[375099524,1753527044299,-588.82,0.00020821,2]
[375099525,1753527044309,-596.14,0.00020821,2]
[375099526,1753527044318,-724.98,0.00020821,2]
[375099527,1753527044328,-787.86,0.00020821,2]
[375099528,1753527044340,-1402.46,0.00020821,2]
[375099529,1753527044350,-3413.29,0.00020821,2]
[375099530,1753527044360,-1667.4,0.00020821,2]
[375099531,1753527044369,-460.0,0.00020821,2]
[375099532,1753527044380,-608.757826,0.00020821,2]
[375099533,1753527044390,-608.757826,0.00020821,2]
[375099534,1753527044399,-460.0,0.00020821,2]
[375099535,1753527044409,-2017.53,0.00020821,2]
[375099536,1753527044420,-460.0,0.00020821,2]
[375099537,1753527044431,-727.62,0.00020821,2]
[375099538,1753527044441,-471.24,0.00020821,2]
[375099539,1753527044451,-2856.97,0.00020821,2]
[375099540,1753527044460,-2520.78,0.00020821,2]
[375099541,1753527044471,-1925.48,0.00020821,2]
[375099542,1753527044481,-470.9,0.00020821,2]
[375099543,1753527044490,-460.0,0.00020821,2]
[375099544,1753527044500,-460.0,0.00020821,2]
[375099545,1753527044510,-1046.86,0.00020821,2]
[375099546,1753527044519,-570.67,0.00020821,2]
[375099547,1753527044528,-460.0,0.00020821,2]
[375099548,1753527044538,-859.5,0.00020821,2]
[375099549,1753527044547,-2649.8,0.00020821,2]
[375099550,1753527044556,-540.45,0.00020821,2]
[375099551,1753527044566,-772.34,0.00020821,2]
[375099552,1753527044575,-1753.33,0.00020821,2]
[375099553,1753527044585,-460.0,0.00020821,2]
[375099554,1753527044594,-8471.01,0.00020821,2]
[375099555,1753527044603,-267.10992744,0.00020821,2]
[375099556,1753527044613,-460.0,0.00020821,2]
[375099557,1753527044622,-460.0,0.00020821,2]
[375099558,1753527044631,-814.3,0.00020821,2]
[375099559,1753527044641,-843.6,0.00020821,2]
[375099560,1753527044650,-460.0,0.00020821,2]
[375099561,1753527044660,-676.24,0.00020821,2]
[375099562,1753527044670,-1443.02,0.00020821,2]
[375099563,1753527044680,-1286.08,0.00020821,2]
[375099564,1753527044690,-726.98,0.00020821,2]
[375099565,1753527044699,-202.27534398,0.00020822,2]
[375099566,1753527044708,-151.0,0.00020822,2]
[375099567,1753527044718,-151.0,0.00020822,2]
[375099568,1753527044727,-151.0,0.00020822,2]
[375099569,1753527044737,-151.0,0.00020822,2]
[375099570,1753527044746,-151.0,0.00020822,2]
[375099571,1753527044755,-151.0,0.00020822,2]
[375099572,1753527044765,-555.0,0.00020822,2]
[375099573,1753527044774,-202.67053542,0.00020822,2]
[375099574,1753527044784,-151.0,0.00020822,2]
[375099575,1753527044793,-151.0,0.00020822,2]
[375099576,1753527044803,-151.0,0.00020822,2]
[375099577,1753527044812,-151.4718976,0.00020822,2]
[375099578,1753527044822,-151.0,0.00020822,2]
[375099579,1753527044832,-151.0,0.00020822,2]
[375099580,1753527044841,-151.0,0.00020822,2]
[375099581,1753527044851,-248.75819819,0.00020822,2]
[375099582,1753527044860,-151.0,0.00020822,2]
[375099583,1753527044870,-681.0,0.00020822,2]
[375099584,1753527044880,-151.0,0.00020822,2]
[375099585,1753527044889,-153.19288286,0.00020822,2]
[375099586,1753527044899,-151.0,0.00020822,2]
[375099587,1753527044908,-151.0,0.00020822,2]
[375099588,1753527044917,-152.20337923,0.00020822,2]
[375099589,1753527044926,-151.31387012,0.00020822,2]
[375099590,1753527044936,-151.0,0.00020822,2]
[375099591,1753527044945,-151.0,0.00020822,2]
[375099592,1753527044955,-220.17848307,0.00020822,2]
[375099593,1753527044965,-151.0,0.00020822,2]
[375099594,1753527044974,-151.0,0.00020822,2]
[375099595,1753527044984,-151.0,0.00020822,2]
[375099596,1753527044993,-152.35444116,0.00020822,2]
[375099597,1753527045003,-151.0,0.00020822,2]
[375099598,1753527045013,-152.08575023,0.00020822,2]
[375099599,1753527045022,-152.402634,0.00020822,2]
[375099600,1753527045032,-152.48276809,0.00020822,2]
[375099601,1753527045041,-151.0,0.00020822,2]
[375099602,1753527045051,-151.0,0.00020822,2]
[375099603,1753527045060,-151.0,0.00020822,2]
[375099604,1753527045070,-151.0,0.00020822,2]
[375099605,1753527045079,-151.0,0.00020822,2]
[375099606,1753527045089,-151.0,0.00020822,2]
[375099607,1753527045098,-151.0,0.00020822,2]
[375099608,1753527045108,-295.6,0.00020831,4]
[375099609,1753527045118,-520.0,0.00020832,2]
[375099610,1753527045127,-420.0,0.00020893,2]
[375099611,1753527045136,-260.0,0.00020986,2]
[375099612,1753527045145,-200.0,0.00021,2]
[375099613,1753527045154,-151.0,0.00021,3]
[375099614,1753527045164,-151.0,0.00021,3]
[375099615,1753527045173,-2585.20801572,0.0002102,2]
[375099616,1753527045183,-152.29328306,0.0002102,2]
[375099617,1753527045194,-3000.0,0.0002103,2]
[375099618,1753527045203,-151.0,0.0002103,2]
[375099619,1753527045213,-151.0,0.0002103,2]
[375099620,1753527045223,-151.0,0.0002103,2]
[375099621,1753527045232,-151.0,0.0002103,2]
[375099622,1753527045242,-3000.0,0.0002104,2]
[375099623,1753527045251,-677.0,0.00021042,2]
[375099624,1753527045261,-500.0,0.0002105,2]
[375099625,1753527045270,-3000.0,0.0002105,2]
[375099626,1753527045279,-500.0,0.00021058,2]
[375099627,1753527045289,-500.0,0.00021058,2]
[375099628,1753527045299,-500.0,0.00021058,2]
[375099629,1753527045308,-500.0,0.00021058,2]
[375099630,1753527045317,-550.49232197,0.00021058,2]
[375099631,1753527045327,-3000.0,0.0002106,2]
[375099632,1753527045337,-677.0,0.00021062,2]
[375099633,1753527045420,-503.90734139,0.0002107,2]